Workbook

Sheet Product
B1: Maximum Product of Two Numbers
B3: This DIGMath module lets you investigate
B4: the problem of finding two positive numbers
B5: whose product is a maximum
B6: given their sum.
A9: What is the sum S of the two numbers?
B10: (5 - 100 ) | D10: Sum S = | E10: =D11 -> 50
D11: 50
A13: The sum of the two numbers is S = x + y = | E13: =S -> 50
A14: The formula for the product function P = | E14: x(S - x) = Sx - x2
D15: = | E15: =TEXT(S,"0")&"x - x^2" -> 50x - x^2 | K15: Select the value of x = | N15: =N16*dx -> 17.25
N16: 69 | O16: =Calcs!E7+N16*(Calcs!E8-Calcs!E7)/100 -> 0
A18: Click each item below for suggestions and investigations | K18: The associated value for y = | O18: =S-x0 -> 32.75
C19: Item 1
C20: Item 2 | L20: Their product is P = | O20: =x0*(S-x0) -> 565
C21: Item 3
A25: To access/download all the DIGMath Apps for Calculus
A26: Click this link: | C26: DIGMath for Calculus
A28: Created by: Sheldon P. Gordon
A29: Farmingdale State College
A30: Development of this module was supported by the
A31: NSF's Division of Undergraduate Education
A32: under grants DUE-0310123 and DUE-0442160.

Sheet Sum
B1: The Minimum Sum of Two Numbers
B3: This DIGMath module lets you investigate
B4: the problem of finding two positive numbers
B5: whose sum is a minimum
B6: given their product.
A9: What is the product P of the two numbers?
B10: (5 - 1000 ) | D10: Product P = | E10: =D11 -> 700
D11: 700
A13: The product of the numbers is P = x y = | E13: =P -> 700
A14: The formula for the sum function S = | E14: x + P/x
D15: = | E15: ="x + "&TEXT(P,"0")&"/x" -> x + 700/x
I16: Select the value of x = | L16: =L17*dxx -> 14.57
L17: 47 | M17: =Calcs!C8+L17*(Calcs!C9-Calcs!C8)/100 -> 78.243125
A18: Click each item below for suggestions and investigations
C19: Item 1 | I19: The associated value for y = | M19: =P/x00 -> 48.04
C20: Item 2
C21: Item 3 | J21: Their sum is S = | M21: =x00+M19 -> 62.61
A25: To access/download all the DIGMath Apps for Calculus
A26: Click this link: | C26: DIGMath for Calculus
A28: Created by: Sheldon P. Gordon
A29: Farmingdale State College
A30: Development of this module was supported by the
A31: NSF's Division of Undergraduate Education
A32: under grants DUE-0310123 and DUE-0442160.
A40: Click each item below for suggestions and investigations
C41: Item 1
C42: Item 2
C43: Item 3

Sheet Calcs
A1: 1 Product | B1: x | C1: y | G1: 2 Sum | H1: x | I1: y
B2: 0 | C2: =S*B2-B2^2 -> 0 | D2: Point on curve | H2: 1 | I2: =H2+P/H2 -> 701 | J2: Point on curve
B3: =B2+dx -> 0.25 | C3: 12.4375 | D3: =x0 -> 17.25 | E3: 0 | H3: =H2+dxx -> 1.31 | I3: 535.661145 | J3: =x00 -> 14.57 | K3: 0
B4: 0.5 | C4: 24.75 | D4: =x0 -> 17.25 | E4: =D4*S-D4^2 -> 564.9375 | H4: 1.62 | I4: 433.7187654 | J4: =x00 -> 14.57 | K4: =J4+P/J4 -> 62.61392588
B5: 0.75 | C5: 36.9375 | H5: 1.93 | I5: 364.6243005
B6: 1 | C6: 49 | D6: dx = | E6: =S/200 -> 0.25 | H6: 2.24 | I6: 314.74 | J6: dxx = | K6: =INT(SQRT(P)+5)/100 -> 0.31
B7: 1.25 | C7: 60.9375 | H7: 2.55 | I7: 277.0598039
B8: 1.5 | C8: 72.75 | H8: 2.86 | I8: 247.6152448
B9: 1.75 | C9: 84.4375 | H9: 3.17 | I9: 223.9901893
B10: 2 | C10: 96 | H10: 3.48 | I10: 204.6294253
B11: 2.25 | C11: 107.4375 | H11: 3.79 | I11: 188.4865699
B12: 2.5 | C12: 118.75 | H12: 4.1 | I12: 174.8317073
B13: 2.75 | C13: 129.9375 | H13: 4.41 | I13: 163.1401587
B14: 3 | C14: 141 | H14: 4.72 | I14: 153.0250847
B15: 3.25 | C15: 151.9375 | H15: 5.03 | I15: 144.1950099
B16: 3.5 | C16: 162.75 | H16: 5.34 | I16: 136.4261423
B17: 3.75 | C17: 173.4375 | H17: 5.65 | I17: 129.5438053
B18: 4 | C18: 184 | H18: 5.96 | I18: 123.4096644
B19: 4.25 | C19: 194.4375 | H19: 6.27 | I19: 117.9127432
B20: 4.5 | C20: 204.75 | H20: 6.58 | I20: 112.9629787
B21: 4.75 | C21: 214.9375 | H21: 6.89 | I21: 108.4865167
B22: 5 | C22: 225 | H22: 7.2 | I22: 104.4222222
B23: 5.25 | C23: 234.9375 | H23: 7.51 | I23: 100.7190546
B24: 5.5 | C24: 244.75 | H24: 7.82 | I24: 97.3340665
B25: 5.75 | C25: 254.4375 | H25: 8.13 | I25: 94.23086101
B26: 6 | C26: 264 | H26: 8.44 | I26: 91.37838863
B27: 6.25 | C27: 273.4375 | H27: 8.75 | I27: 88.75
B28: 6.5 | C28: 282.75 | H28: 9.06 | I28: 86.32269316
B29: 6.75 | C29: 291.9375 | H29: 9.37 | I29: 84.07651014
B30: 7 | C30: 301 | H30: 9.68 | I30: 81.99404959
B31: 7.25 | C31: 309.9375 | H31: 9.99 | I31: 80.06007007
B32: 7.5 | C32: 318.75 | H32: 10.3 | I32: 78.26116505
B33: 7.75 | C33: 327.4375 | H33: 10.61 | I33: 76.58549482
B34: 8 | C34: 336 | H34: 10.92 | I34: 75.0225641
B35: =B34+dx -> 8.25 | C35: 344.4375 | H35: =H34+dxx -> 11.23 | I35: 73.56303651
B36: 8.5 | C36: 352.75 | H36: 11.54 | I36: 72.19857886
B37: 8.75 | C37: 360.9375 | H37: 11.85 | I37: 70.92172996
B38: 9 | C38: 369 | H38: 12.16 | I38: 69.72578947
B39: 9.25 | C39: 376.9375 | H39: 12.47 | I39: 68.60472334
B40: 9.5 | C40: 384.75 | H40: 12.78 | I40: 67.55308294
B41: 9.75 | C41: 392.4375 | H41: 13.09 | I41: 66.56593583
B42: 10 | C42: 400 | H42: 13.4 | I42: 65.63880597
B43: 10.25 | C43: 407.4375 | H43: 13.71 | I43: 64.76762217
B44: 10.5 | C44: 414.75 | H44: 14.02 | I44: 63.94867332
B45: 10.75 | C45: 421.9375 | H45: 14.33 | I45: 63.17856943
B46: 11 | C46: 429 | H46: 14.64 | I46: 62.45420765
B47: 11.25 | C47: 435.9375 | H47: 14.95 | I47: 61.77274247
B48: 11.5 | C48: 442.75 | H48: 15.26 | I48: 61.13155963
B49: 11.75 | C49: 449.4375 | H49: 15.57 | I49: 60.52825305
B50: 12 | C50: 456 | H50: 15.88 | I50: 59.96060453
B51: 12.25 | C51: 462.4375 | H51: 16.19 | I51: 59.42656578
B52: 12.5 | C52: 468.75 | H52: 16.5 | I52: 58.92424242
B53: 12.75 | C53: 474.9375 | H53: 16.81 | I53: 58.45187983
B54: 13 | C54: 481 | H54: 17.12 | I54: 58.00785047
B55: 13.25 | C55: 486.9375 | H55: 17.43 | I55: 57.59064257
B56: 13.5 | C56: 492.75 | H56: 17.74 | I56: 57.19885006
B57: 13.75 | C57: 498.4375 | H57: 18.05 | I57: 56.83116343
B58: 14 | C58: 504 | H58: 18.36 | I58: 56.48636166
B59: 14.25 | C59: 509.4375 | H59: 18.67 | I59: 56.16330477
B60: 14.5 | C60: 514.75 | H60: 18.98 | I60: 55.86092729
B61: 14.75 | C61: 519.9375 | H61: 19.29 | I61: 55.57823224
B62: 15 | C62: 525 | H62: 19.6 | I62: 55.31428571
B63: 15.25 | C63: 529.9375 | H63: 19.91 | I63: 55.06821195
B64: 15.5 | C64: 534.75 | H64: 20.22 | I64: 54.83918892
B65: 15.75 | C65: 539.4375 | H65: 20.53 | I65: 54.62644423
B66: 16 | C66: =S*B66-B66^2 -> 544 | H66: 20.84 | I66: =H66+P/H66 -> 54.42925144
B67: =B66+dx -> 16.25 | C67: 548.4375 | H67: =H66+dxx -> 21.15 | I67: 54.24692671
B68: 16.5 | C68: 552.75 | H68: 21.46 | I68: 54.07882572
B69: 16.75 | C69: 556.9375 | H69: 21.77 | I69: 53.92434084
B70: 17 | C70: 561 | H70: 22.08 | I70: 53.78289855
B71: 17.25 | C71: 564.9375 | H71: 22.39 | I71: 53.65395712
B72: 17.5 | C72: 568.75 | H72: 22.7 | I72: 53.53700441
B73: 17.75 | C73: 572.4375 | H73: 23.01 | I73: 53.43155585
B74: 18 | C74: 576 | H74: 23.32 | I74: 53.33715266
B75: 18.25 | C75: 579.4375 | H75: 23.63 | I75: 53.25336014
B76: 18.5 | C76: 582.75 | H76: 23.94 | I76: 53.17976608
B77: 18.75 | C77: 585.9375 | H77: 24.25 | I77: 53.11597938
B78: 19 | C78: 589 | H78: 24.56 | I78: 53.06162866
B79: 19.25 | C79: 591.9375 | H79: 24.87 | I79: 53.01636108
B80: 19.5 | C80: 594.75 | H80: 25.18 | I80: 52.97984114
B81: 19.75 | C81: 597.4375 | H81: 25.49 | I81: 52.95174971
B82: 20 | C82: 600 | H82: 25.8 | I82: 52.93178295
B83: 20.25 | C83: 602.4375 | H83: 26.11 | I83: 52.91965147
B84: 20.5 | C84: 604.75 | H84: 26.42 | I84: 52.91507949
B85: 20.75 | C85: 606.9375 | H85: 26.73 | I85: 52.91780397
B86: 21 | C86: 609 | H86: 27.04 | I86: 52.92757396
B87: 21.25 | C87: 610.9375 | H87: 27.35 | I87: 52.94414991
B88: 21.5 | C88: 612.75 | H88: 27.66 | I88: 52.96730296
B89: 21.75 | C89: 614.4375 | H89: 27.97 | I89: 52.99681444
B90: 22 | C90: 616 | H90: 28.28 | I90: 53.03247525
B91: 22.25 | C91: 617.4375 | H91: 28.59 | I91: 53.07408534
B92: 22.5 | C92: 618.75 | H92: 28.9 | I92: 53.12145329
B93: 22.75 | C93: 619.9375 | H93: 29.21 | I93: 53.17439575
B94: 23 | C94: 621 | H94: 29.52 | I94: 53.23273713
B95: 23.25 | C95: 621.9375 | H95: 29.83 | I95: 53.29630908
B96: 23.5 | C96: 622.75 | H96: 30.14 | I96: 53.36495023
B97: 23.75 | C97: 623.4375 | H97: 30.45 | I97: 53.43850575
B98: 24 | C98: 624 | H98: 30.76 | I98: 53.51682705
B99: =B98+dx -> 24.25 | C99: 624.4375 | H99: =H98+dxx -> 31.07 | I99: 53.59977148
B100: 24.5 | C100: 624.75 | H100: 31.38 | I100: 53.68720204
B101: 24.75 | C101: 624.9375 | H101: 31.69 | I101: 53.77898706
B102: 25 | C102: 625 | H102: 32 | I102: 53.875
B103: 25.25 | C103: 624.9375 | H103: 32.31 | I103: 53.97511916
B104: 25.5 | C104: 624.75 | H104: 32.62 | I104: 54.07922747
B105: 25.75 | C105: 624.4375 | H105: 32.93 | I105: 54.18721227
B106: 26 | C106: 624 | H106: 33.24 | I106: 54.2989651
B107: 26.25 | C107: 623.4375 | H107: 33.55 | I107: 54.41438152
B108: 26.5 | C108: 622.75 | H108: 33.86 | I108: 54.5333609
B109: 26.75 | C109: 621.9375 | H109: 34.17 | I109: 54.65580626
B110: 27 | C110: 621 | H110: 34.48 | I110: 54.78162413
B111: 27.25 | C111: 619.9375 | H111: 34.79 | I111: 54.91072435
B112: 27.5 | C112: 618.75 | H112: 35.1 | I112: 55.04301994
B113: 27.75 | C113: 617.4375 | H113: 35.41 | I113: 55.178427
B114: 28 | C114: 616 | H114: 35.72 | I114: 55.3168645
B115: 28.25 | C115: 614.4375 | H115: 36.03 | I115: 55.45825423
B116: 28.5 | C116: 612.75 | H116: 36.34 | I116: 55.60252064
B117: 28.75 | C117: 610.9375 | H117: 36.65 | I117: 55.74959072
B118: 29 | C118: 609 | H118: 36.96 | I118: 55.89939394
B119: 29.25 | C119: 606.9375 | H119: 37.27 | I119: 56.05186209
B120: 29.5 | C120: 604.75 | H120: 37.58 | I120: 56.20692922
B121: 29.75 | C121: 602.4375 | H121: 37.89 | I121: 56.36453154
B122: 30 | C122: 600 | H122: 38.2 | I122: 56.52460733
B123: 30.25 | C123: 597.4375 | H123: 38.51 | I123: 56.68709686
B124: 30.5 | C124: 594.75 | H124: 38.82 | I124: 56.8519423
B125: 30.75 | C125: 591.9375 | H125: 39.13 | I125: 57.01908766
B126: 31 | C126: 589 | H126: 39.44 | I126: 57.1884787
B127: 31.25 | C127: 585.9375 | H127: 39.75 | I127: 57.36006289
B128: 31.5 | C128: 582.75 | H128: 40.06 | I128: 57.53378932
B129: 31.75 | C129: 579.4375 | H129: 40.37 | I129: 57.70960862
B130: 32 | C130: =S*B130-B130^2 -> 576 | H130: 40.68 | I130: =H130+P/H130 -> 57.88747296
B131: =B130+dx -> 32.25 | C131: 572.4375 | H131: =H130+dxx -> 40.99 | I131: 58.06733594
B132: 32.5 | C132: 568.75 | H132: 41.3 | I132: 58.24915254
B133: 32.75 | C133: 564.9375 | H133: 41.61 | I133: 58.43287912
B134: 33 | C134: 561 | H134: 41.92 | I134: 58.61847328
B135: 33.25 | C135: 556.9375 | H135: 42.23 | I135: 58.80589391
B136: 33.5 | C136: 552.75 | H136: 42.54 | I136: 58.99510108
B137: 33.75 | C137: 548.4375 | H137: 42.85 | I137: 59.18605601
B138: 34 | C138: 544 | H138: 43.16 | I138: 59.37872104
B139: 34.25 | C139: 539.4375 | H139: 43.47 | I139: 59.57305958
B140: 34.5 | C140: 534.75 | H140: 43.78 | I140: 59.76903609
B141: 34.75 | C141: 529.9375 | H141: 44.09 | I141: 59.96661601
B142: 35 | C142: 525 | H142: 44.4 | I142: 60.16576577
B143: 35.25 | C143: 519.9375 | H143: 44.71 | I143: 60.3664527
B144: 35.5 | C144: 514.75 | H144: 45.02 | I144: 60.56864505
B145: 35.75 | C145: 509.4375 | H145: 45.33 | I145: 60.77231193
B146: 36 | C146: 504 | H146: 45.64 | I146: 60.97742331
B147: 36.25 | C147: 498.4375 | H147: 45.95 | I147: 61.18394995
B148: 36.5 | C148: 492.75 | H148: 46.26 | I148: 61.39186338
B149: 36.75 | C149: 486.9375 | H149: 46.57 | I149: 61.60113592
B150: 37 | C150: 481 | H150: 46.88 | I150: 61.81174061
B151: 37.25 | C151: 474.9375 | H151: 47.19 | I151: 62.0236512
B152: 37.5 | C152: 468.75 | H152: 47.5 | I152: 62.23684211
B153: 37.75 | C153: 462.4375 | H153: 47.81 | I153: 62.45128843
B154: 38 | C154: 456 | H154: 48.12 | I154: 62.66696592
B155: 38.25 | C155: 449.4375 | H155: 48.43 | I155: 62.88385092
B156: 38.5 | C156: 442.75 | H156: 48.74 | I156: 63.10192039
B157: 38.75 | C157: 435.9375 | H157: 49.05 | I157: 63.32115189
B158: 39 | C158: 429 | H158: 49.36 | I158: 63.5415235
B159: 39.25 | C159: 421.9375 | H159: 49.67 | I159: 63.76301389
B160: 39.5 | C160: 414.75 | H160: 49.98 | I160: 63.98560224
B161: 39.75 | C161: 407.4375 | H161: 50.29 | I161: 64.20926824
B162: 40 | C162: 400 | H162: 50.6 | I162: 64.43399209
B163: =B162+dx -> 40.25 | C163: 392.4375 | H163: =H162+dxx -> 50.91 | I163: 64.65975447
B164: 40.5 | C164: 384.75 | H164: 51.22 | I164: 64.88653651
B165: 40.75 | C165: 376.9375 | H165: 51.53 | I165: 65.11431981
B166: 41 | C166: 369 | H166: 51.84 | I166: 65.34308642
B167: 41.25 | C167: 360.9375 | H167: 52.15 | I167: 65.57281879
B168: 41.5 | C168: 352.75 | H168: 52.46 | I168: 65.80349981
B169: 41.75 | C169: 344.4375 | H169: 52.77 | I169: 66.03511275
B170: 42 | C170: 336 | H170: 53.08 | I170: 66.2676413
B171: 42.25 | C171: 327.4375 | H171: 53.39 | I171: 66.50106949
B172: 42.5 | C172: 318.75 | H172: 53.7 | I172: 66.73538175
B173: 42.75 | C173: 309.9375 | H173: 54.01 | I173: 66.97056286
B174: 43 | C174: 301 | H174: 54.32 | I174: 67.20659794
B175: 43.25 | C175: 291.9375 | H175: 54.63 | I175: 67.44347245
B176: 43.5 | C176: 282.75 | H176: 54.94 | I176: 67.68117219
B177: 43.75 | C177: 273.4375 | H177: 55.25 | I177: 67.91968326
B178: 44 | C178: 264 | H178: 55.56 | I178: 68.15899208
B179: 44.25 | C179: 254.4375 | H179: 55.87 | I179: 68.39908538
B180: 44.5 | C180: 244.75 | H180: 56.18 | I180: 68.63995016
B181: 44.75 | C181: 234.9375 | H181: 56.49 | I181: 68.88157373
B182: 45 | C182: 225 | H182: 56.8 | I182: 69.12394366
B183: 45.25 | C183: 214.9375 | H183: 57.11 | I183: 69.3670478
B184: 45.5 | C184: 204.75 | H184: 57.42 | I184: 69.61087426
B185: 45.75 | C185: 194.4375 | H185: 57.73 | I185: 69.8554114
B186: 46 | C186: 184 | H186: 58.04 | I186: 70.10064783
B187: 46.25 | C187: 173.4375 | H187: 58.35 | I187: 70.34657241
B188: 46.5 | C188: 162.75 | H188: 58.66 | I188: 70.59317422
B189: 46.75 | C189: 151.9375 | H189: 58.97 | I189: 70.8404426
B190: 47 | C190: 141 | H190: 59.28 | I190: 71.08836707
B191: 47.25 | C191: 129.9375 | H191: 59.59 | I191: 71.33693741
B192: 47.5 | C192: 118.75 | H192: 59.9 | I192: 71.58614357
B193: 47.75 | C193: 107.4375 | H193: 60.21 | I193: 71.83597575
B194: 48 | C194: =S*B194-B194^2 -> 96 | H194: 60.52 | I194: =H194+P/H194 -> 72.08642432
B195: =B194+dx -> 48.25 | C195: 84.4375 | H195: =H194+dxx -> 60.83 | I195: 72.33747986
B196: 48.5 | C196: 72.75 | H196: 61.14 | I196: 72.58913314
B197: 48.75 | C197: 60.9375 | H197: 61.45 | I197: 72.8413751
B198: 49 | C198: 49 | H198: 61.76 | I198: 73.09419689
B199: 49.25 | C199: 36.9375 | H199: 62.07 | I199: 73.34758982
B200: 49.5 | C200: 24.75 | H200: 62.38 | I200: 73.60154537
... 2 more rows
